[Event "Belt and Road Women 2024"]
[Site "Yuecheng Shaoxing"]
[Date "2024.08.01"]
[Round "8.2"]
[White "Mammadzada, Gunay"]
[Black "Badelka, Olga"]
[Result "1/2-1/2"]
[ECO "C07"]
[WhiteElo "2444"]
[BlackElo "2389"]
[Annotator "RC"]
[PlyCount "65"]
[EventDate "2024.08.01"]
[EventType "swiss"]
[EventCountry "CHN"]
[SourceTitle "playchess.com"]
[Source "ChessBase"]
[SourceQuality "1"]
[TimeControl "5400+30"]

1. e4 {[%emt 0:00:19]} e6 {[%emt 0:00:06]} 2. d4 {[%emt 0:00:25]} d5 {[%emt 0:00:05]} 3. Nd2 {[%emt 0:00:13]} c5 {[%emt 0:00:07]} 4. Ngf3 {[%emt 0:00:28]} Nf6 {[%emt 0:00:16]} 5. exd5 {[%emt 0:01:13]} Nxd5 {[%emt 0:00:06]} 6. Ne4 {[%emt 0:02:34]} cxd4 {[%emt 0:03:16]} 7. Nxd4 {[%emt 0:00:05]} Be7 {[%emt 0:01:40]} 8. Bc4 {[%emt 0:05:41]} O-O {[%emt 0:04:33]} 9. O-O {[%emt 0:00:07]} Nc6 {[%emt 0:07:21]} 10. a4 {[%emt 0:14:16]} Nxd4 {[%emt 0:08:13]} 11. Qxd4 {[%emt 0:00:07]} Bd7 {[%emt 0:06:48]} 12. b3 {[%emt 0:16:21]} Bc6 {[%emt 0:01:41]} 13. Bb2 {[%emt 0:00:05]} Nf6 {[%emt 0:02:27]} 14. Ng3 {[%emt 0:05:04]} Qxd4 {[%emt 0:01:34]} 15. Bxd4 {[%emt 0:00:02]} Rfd8 {[%emt 0:00:34]} 16. Rfd1 {[%emt 0:02:19]} Nd5 {[%emt 0:00:57]} 17. c3 {[%emt 0:09:37]} a5 {[%emt 0:13:58]} 18. Ne2 {[%emt 0:06:52]} Bf6 {[%emt 0:04:33]} 19. Bxf6 {[%emt 0:01:09]} gxf6 {[%emt 0:00:06]} 20. Bb5 {[%emt 0:05:38]} e5 {[%emt 0:02:18]} 21. Kf1 {[%emt 0:03:45]} Kf8 {[%emt 0:02:40]} 22. Ke1 {[%emt 0:01:14]} Ke7 {[%emt 0:00:32]} 23. Rd2 {[%emt 0:01:06]} Nc7 {[%emt 0:02:27]} 24. Bxc6 {[%emt 0:00:24]} bxc6 {[%emt 0:00:04]} 25. g4 {[%emt 0:04:17]} Ne6 {[%emt 0:03:15]} 26. Ng3 {[%emt 0:06:37]} Nc5 {[%emt 0:00:43]} 27. Nf5+ {[%emt 0:00:44]} Ke8 {[%emt 0:01:56]} 28. Rad1 {[%emt 0:01:38]} Rxd2 {[%emt 0:03:36]} 29. Rxd2 {[%emt 0:00:07]} Rd8 {[%emt 0:09:29]} 30. Nd6+ {[%emt 0:02:32]} Ke7 {[%emt 0:04:02]} 31. Nf5+ {[%emt 0:00:37]} Ke8 {[%emt 0:00:08]} 32. Nd6+ {[%emt 0:01:05]} Ke7 {[%emt 0:00:05]} 33. Nf5+ {[%emt 0:00:05]} 1/2-1/2

[Event "Belt and Road Women 2024"]
[Site "Yuecheng Shaoxing"]
[Date "2024.08.01"]
[Round "8.3"]
[White "Shuvalova, Polina"]
[Black "Xiao, Yiyi"]
[Result "1-0"]
[ECO "C41"]
[WhiteElo "2467"]
[BlackElo "2338"]
[Annotator "TA"]
[PlyCount "123"]
[EventDate "2024.08.01"]
[EventType "swiss"]
[EventCountry "CHN"]
[SourceTitle "playchess.com"]
[Source "ChessBase"]
[SourceQuality "1"]
[TimeControl "5400+30"]

{[%evp 11,123,24,35,37,47,39,47,41,37,34,34,40,35,39,41,31,39,26,70,68,54,70,54,51,77,43,52,43,72,63,82,87,84,83,80,75,81,72,83,119,107,104,98,60,70,77,95,108,200,197,189,45,217,227,297,297,297,220,212,200,204,157,145,153,193,198,198,193,193,27,35,39,31,37,28,35,30,39,101,102,93,97,97,102,147,137,554,493,493,493,500,498,772,745,761,756,853,839,1065,947,2170,1207,1893,1493,2044,1917,1306,1227,29971,29972,29983,29984,29984,29985]} 1. e4 {[%emt 0:00:02]} d6 {[%emt 0:01:17]} 2. d4 {[%emt 0:00:10]} Nf6 {[%emt 0:00:15]} 3. Nc3 {[%emt 0:00:13]} e5 {[%emt 0:00:32]} 4. Nf3 {[%emt 0:00:07]} exd4 {[%emt 0:00:42]} 5. Nxd4 {[%emt 0:00:06]} Be7 {[%emt 0:00:23]} 6. g3 {[%emt 0:00:09]} O-O {[%emt 0:00:29]} 7. Bg2 {[%emt 0:00:04]} Re8 {[%emt 0:00:31][%cal Od6d5]} 8. O-O {[%emt 0:00:20]} Bf8 {[%emt 0:01:33]} 9. Bf4 {[%emt 0:02:55] White is slightly better.} Nbd7 {[%emt 0:02:55]} 10. Re1 {[%emt 0:01:58]} Ne5 {[%emt 0:02:05]} 11. h3 {[%emt 0:01:19]} c6 {[%emt 0:01:02]} 12. a4 {[%emt 0:05:29]} a5 {[%emt 0:01:48]} 13. Kh2 {[%emt 0:09:36]} h6 {[%emt 0:04:53]} 14. b3 {[%emt 0:02:18]} Ng6 {[%emt 0:14:26]} 15. Be3 {[%emt 0:06:41]} Qc7 {[%emt 0:12:09]} 16. Qd2 {[%emt 0:01:09]} Bd7 {[%emt 0:00:29][%cal Od6d5]} 17. f4 {[%emt 0:02:43]} Rad8 {[%emt 0:00:22]} 18. Qf2 {[%emt 0:00:49]} Rb8 {[%emt 0:09:50]} 19. Rad1 {[%emt 0:27:31]} b6 {[%emt 0:04:00]} 20. Nde2 {[%emt 0:02:38]} c5 {[%emt 0:02:59]} 21. Bf3 {[%emt 0:06:38]} Bc6 {[%emt 0:04:49][%cal Oc7b7]} 22. Qg2 {[%emt 0:00:04]} Qb7 {[%emt 0:00:26][%cal Ob8c8]} 23. Bc1 {[%emt 0:00:52]} Rbc8 {[%emt 0:11:53][%cal Rf6e4]} (23... Nxe4 $2 24. f5 $18) 24. Nd5 {[%emt 0:02:23]} Bxd5 {[%emt 0:01:26]} 25. exd5 {[%emt 0:00:04]} b5 {[%emt 0:00:53]} 26. axb5 {[%emt 0:04:11]} Qxb5 {[%emt 0:00:06]} 27. Bb2 {[%emt 0:00:45]} Qb4 {[%emt 0:05:50]} 28. h4 {[%emt 0:04:40][%cal Bh3h4,Bh4h5][%mdl 32]} Nd7 {[%emt 0:10:29]} 29. h5 {[%emt 0:00:14]} Nh8 {[%emt 0:00:34]} (29... Ne7 $16) 30. Bg4 $1 $18 {[%emt 0:05:04]} Rcd8 {[%emt 0:00:08]} 31. Nc3 {[%emt 0:02:22]} (31. Qf3 $18) 31... Nf6 $2 {[%emt 0:03:22] [#]} ({Black should play} 31... Rxe1 $1 $14 32. Rxe1 Nf6) 32. Be2 $1 {[%emt 0:00:10]} Ne4 {[%emt 0:01:58]} 33. Na2 {[%emt 0:02:06]} (33. Nxe4 Qxe4 34. Bb5 Qxg2+ 35. Kxg2 Rxe1 36. Rxe1 Rb8) 33... Qb7 {[%emt 0:00:44]} 34. Bf3 {[%emt 0:00:05]} f5 {[%emt 0:00:28]} 35. g4 {[%emt 0:03:34]} Qe7 {[%emt 0:01:16]} 36. gxf5 {[%emt 0:02:59] Active counter play!} Qh4+ {[%emt 0:00:05]} 37. Kg1 {[%emt 0:00:04]} Ng5 {[%emt 0:00:20]} 38. Rxe8 {[%emt 0:01:48]} Nh3+ {[%emt 0:00:22]} 39. Kf1 {[%emt 0:01:30][%csl Gb2][%cal Rg2g7]} Rxe8 {[%emt 0:00:02] [#]} 40. Nc3 $2 {[%emt 0:00:20]} ({White must play} 40. f6 $1 $18 {[%cal Rf6g7]} Nf7 41. fxg7) 40... Re3 {[%emt 0:00:47]} 41. Ne2 {[%emt 0:00:53]} Nxf4 {[%emt 0:00:24]} 42. Qg4 {[%emt 0:01:03] Dancing on a razor blade.} Qxg4 {[%emt 0:01:08]} 43. Bxg4 {[%emt 0:00:03] A strong pair of Bishops.} Nxe2 {[%emt 0:00:05]} 44. Bxe2 {[%emt 0:00:03]} Nf7 {[%emt 0:00:50] Black is on the road to losing.} (44... Be7 $1 $14) 45. Ra1 $16 {[%emt 0:00:31]} Ng5 {[%emt 0:00:09]} 46. Rxa5 {[%emt 0:00:22]} Ne4 {[%emt 0:00:50]} 47. Bd3 {[%emt 0:02:05] Strongly threatening Bc1.} Be7 {[%emt 0:01:03]} 48. Bc1 {[%emt 0:01:15]} Ng3+ $2 {[%emt 0:00:36][%mdl 8192]} (48... Rf3+ $16 {is a better chance.} 49. Kg2 Rg3+ 50. Kh2 Rg4) 49. Kf2 $18 {[%emt 0:00:15]} Rxd3 {[%emt 0:00:07]} 50. cxd3 {[%emt 0:00:02]} Nxh5 {[%emt 0:00:29][%mdl 4096] Endgame. KRB-KBN} 51. d4 {[%emt 0:01:21]} Nf6 {[%emt 0:00:11]} (51... cxd4 $142 52. b4 Nf6) 52. dxc5 {[%emt 0:00:29]} dxc5 {[%emt 0:00:04]} 53. Be3 {[%emt 0:00:18]} Kf7 {[%emt 0:01:43]} 54. Kf3 {[%emt 0:00:03]} (54. Bxc5 Bxc5+ (54... Nxd5 $2 {is the wrong capture.} 55. Bxe7 Nxe7 56. Ke3 $18) 55. Kf3 (55. Rxc5 $2 Ne4+ 56. Kf3 Nxc5 $19) 55... Be7 $17) 54... Nd7 {[%emt 0:00:06]} 55. Bf4 {[%emt 0:00:29]} h5 {[%emt 0:00:59][%cal Bh6h5,Bh5h4,Bh4h3][%mdl 32]} 56. Ra7 {[%emt 0:00:06]} Ke8 {[%emt 0:00:01]} 57. d6 {[%emt 0:00:40]} Bf6 {[%emt 0:00:05]} 58. Ke4 {[%emt 0:00:12]} h4 {[%emt 0:00:34]} 59. Kd5 {[%emt 0:00:05] Threatening mate with Kc6.} h3 {[%emt 0:00:57]} 60. Kc6 {[%emt 0:00:27] White mates.} Be5 {[%emt 0:00:33]} 61. Rxd7 {[%emt 0:00:18]} Bxf4 {[%emt 0:00:05]} 62. Rxg7 {[%emt 0:00:11] Weighted Error Value: White=0.17 (very precise) /Black=0.39.  Loses game:     	---       	Black=2      Missed win:     	White=1     	---        Mistake:       	White=1     	Black=3      Inaccurate:     	White=2     	Black=5      OK:         	White=17    	Black=16     Best:        	White=3     	Black=3      Strong:       	White=1     	---} 1-0

[Event "Belt and Road Women 2024"]
[Site "Yuecheng Shaoxing"]
[Date "2024.08.01"]
[Round "8.4"]
[White "Garifullina, Leya"]
[Black "Stefanova, Antoaneta"]
[Result "1-0"]
[ECO "B12"]
[WhiteElo "2458"]
[BlackElo "2417"]
[Annotator "TA"]
[PlyCount "89"]
[EventDate "2024.08.01"]
[EventType "swiss"]
[EventCountry "CHN"]
[SourceTitle "playchess.com"]
[Source "ChessBase"]
[SourceQuality "1"]
[TimeControl "5400+30"]

{[%evp 9,89,0,0,14,6,25,28,17,18,15,22,0,7,-14,0,12,8,18,14,0,44,40,48,50,68,43,72,70,47,65,55,76,52,70,125,72,66,73,95,38,49,61,66,2,6,5,23,0,152,154,147,154,158,154,1027,985,1873,1707,1654,1591,1360,1605,1929,1291,2058,1996,1685,1823,2000,1828,29987,29988,29988,29989,29989,29990,29990,29991,29991,29992,29993,29994]} 1. e4 {[%emt 0:00:03]} c6 {[%emt 0:01:03]} 2. d4 {[%emt 0:00:18]} d5 {[%emt 0:00:04]} 3. e5 {[%emt 0:02:33]} c5 {[%emt 0:00:04]} 4. dxc5 {[%emt 0:00:07]} e6 {[%emt 0:00:07]} 5. a3 {[%emt 0:00:36]} Bxc5 {[%emt 0:01:27]} 6. Nf3 {[%emt 0:00:12]} f6 {[%emt 0:01:49]} 7. b4 {[%emt 0:00:37]} Be7 {[%emt 0:00:25]} 8. Bb2 {[%emt 0:00:07] White has an edge.} a5 {[%emt 0:00:58]} 9. b5 {[%emt 0:00:36]} Nd7 {[%emt 0:00:21]} 10. Nbd2 {[%emt 0:00:46]} Nh6 {[%emt 0:02:08]} 11. Be2 {[%emt 0:06:14]} Nf7 {[%emt 0:25:32]} 12. exf6 {[%emt 0:00:25]} Bxf6 {[%emt 0:00:08]} 13. Bxf6 {[%emt 0:00:09]} Qxf6 {[%emt 0:00:06]} 14. c4 {[%emt 0:00:38]} Nc5 {[%emt 0:01:20]} 15. O-O {[%emt 0:01:44]} a4 {[%emt 0:02:45]} 16. Rc1 {[%emt 0:05:56]} d4 {[%emt 0:12:01]} 17. Qc2 {[%emt 0:01:01]} (17. Bd3 $5) 17... e5 {[%emt 0:07:58] ...Bf5 is the strong threat.} 18. Ne4 {[%emt 0:02:54]} Nxe4 {[%emt 0:13:05]} 19. Qxe4 {[%emt 0:00:12]} Bf5 {[%emt 0:00:24]} 20. Qxb7 {[%emt 0:02:39]} O-O {[%emt 0:00:03] Hoping for ...d3.} 21. Nd2 {[%emt 0:09:17]} Ng5 {[%emt 0:01:28]} (21... Rab8 $1 $14 22. Qf3 Ng5) 22. f4 {[%emt 0:18:37]} (22. c5 $142) 22... exf4 $16 {[%emt 0:00:44]} 23. Bf3 $36 {[%emt 0:00:57][%mdl 2048] White is on the roll.} (23. Rxf4 $2 {too greedy.} Nh3+ 24. gxh3 Qg5+ 25. Rg4 Bxg4 (25... Qxd2 26. Qxg7#) 26. Bxg4 Qxd2 $19) 23... Rab8 {[%emt 0:05:28]} 24. Bd5+ {[%emt 0:01:52]} (24. Qa7 $16) 24... Be6 $1 $14 {[%emt 0:01:08]} 25. Qc6 {[%emt 0:01:27] And now Ne4 would win.} Rbc8 {[%emt 0:02:44]} 26. Bxe6+ {[%emt 0:04:10]} ({Don't go for} 26. Rxf4 $2 Nh3+ (26... Qxf4 $2 27. Bxe6+ Nxe6 28. Qxe6+ Kh8 29. Qe2 $19) 27. gxh3 Qg5+ (27... Qxf4 $2 {perishes.} 28. Bxe6+ Kh8 29. Bxc8 $18) 28. Kh1 Rxc6 (28... Qxf4 $2 29. Bxe6+ Kh8 30. Bxc8 $18) 29. Rxf8+ Kxf8 $19) (26. Qb6 $14) 26... Nxe6 $11 {[%emt 0:00:05]} 27. Qe4 {[%emt 0:01:46][%cal Oc4c5] Strongly threatening c5!} Rfd8 {[%emt 0:03:27]} 28. Rb1 {[%emt 0:04:09]} g5 $2 {[%emt 0:02:44]} ({Better is} 28... d3 $11) 29. Rfe1 $16 {[%emt 0:04:59] White is more active.} Nc5 {[%emt 0:00:41] [#]} 30. Qe5 {[%emt 0:00:27]} Kf7 {[%emt 0:06:09]} 31. b6 {[%emt 0:02:27] Threatens to win with b7.} Nb7 $2 {[%emt 0:05:31] This costs Black the game.} (31... Qxe5 $16 32. Rxe5 Nb3 33. Nxb3 axb3) 32. Qe4 $18 {[%emt 0:00:18][%csl LRb7,LRh7]} Rc6 {[%emt 0:00:40]} 33. Qxh7+ {[%emt 0:00:13]} Kf8 {[%emt 0:00:01][%cal Bf7f8,Bf8g8,Bg8g7][%mdl 32]} 34. Qxb7 {[%emt 0:00:26]} d3 {[%emt 0:00:10][%cal Bd4d3,Bd3d2][%mdl 32]} 35. Ne4 {[%emt 0:01:38]} Qg6 {[%emt 0:01:32] [#]} 36. Nxg5 $1 {[%emt 0:01:23] White wants to mate with Qe7+.} Kg8 {[%emt 0:01:42]} 37. Qe7 {[%emt 0:01:40]} Rb8 {[%emt 0:00:47]} 38. b7 {[%emt 0:00:44]} d2 {[%emt 0:00:12]} 39. Red1 {[%emt 0:00:18] Rb5 would now be deadly.} Rxc4 {[%emt 0:00:46][%cal Bc6c4,Bc4c1,Bc1b1][%mdl 32]} 40. Qe5 {[%emt 0:01:09] White mates.} Qxb1 {[%emt 0:01:14]} 41. Qxb8+ {[%emt 0:00:21]} Kg7 {[%emt 0:00:02]} 42. Rxb1 {[%emt 0:01:18]} Rc1+ {[%emt 0:00:03]} 43. Kf2 {[%emt 0:00:05]} Rxb1 {[%emt 0:01:05]} 44. Qc7+ {[%emt 0:00:18]} Kg6 {[%emt 0:00:13]} 45. Qc2+ {[%emt 0:00:07] Weighted Error Value: White=0.11 (very precise) /Black=0.43.  Loses game:     	---       	Black=1      Mistake:       	White=3     	Black=2      Inaccurate:     	---       	Black=4      OK:         	White=13    	Black=7      Best:        	White=1     	Black=1      Strong:       	---       	Black=1} 1-0

[Event "Belt and Road Women 2024"]
[Site "Yuecheng Shaoxing"]
[Date "2024.08.01"]
[Round "8.5"]
[White "Lu, Miaoyi"]
[Black "Kurmangaliyeva, Liya"]
[Result "1/2-1/2"]
[ECO "B66"]
[WhiteElo "2449"]
[BlackElo "2282"]
[Annotator "RC"]
[PlyCount "251"]
[EventDate "2024.08.01"]
[EventType "swiss"]
[EventCountry "CHN"]
[SourceTitle "playchess.com"]
[Source "ChessBase"]
[SourceQuality "1"]
[TimeControl "5400+30"]

1. e4 {[%emt 0:00:01]} c5 {[%emt 0:00:25]} 2. Nf3 {[%emt 0:00:03]} Nc6 {[%emt 0:00:15]} 3. d4 {[%emt 0:00:03]} cxd4 {[%emt 0:00:16]} 4. Nxd4 {[%emt 0:00:02]} Nf6 {[%emt 0:00:21]} 5. Nc3 {[%emt 0:00:03]} d6 {[%emt 0:00:16]} 6. Bg5 {[%emt 0:00:06]} e6 {[%emt 0:00:15]} 7. Qd2 {[%emt 0:00:03]} a6 {[%emt 0:00:19]} 8. Nxc6 {[%emt 0:00:03]} bxc6 {[%emt 0:00:09]} 9. O-O-O {[%emt 0:00:04]} Be7 {[%emt 0:01:02]} 10. Bxf6 {[%emt 0:00:02]} gxf6 {[%emt 0:00:38]} 11. Bc4 {[%emt 0:00:03]} Bb7 {[%emt 0:04:24]} 12. Qe3 {[%emt 0:00:02]} Qa5 {[%emt 0:04:03]} 13. Rd2 {[%emt 0:01:34]} O-O-O {[%emt 0:17:57]} 14. Rhd1 {[%emt 0:02:23]} Kb8 {[%emt 0:01:24]} 15. a3 {[%emt 0:22:32]} h5 {[%emt 0:03:42]} 16. Kb1 {[%emt 0:00:44]} Rhg8 {[%emt 0:07:34]} 17. g3 {[%emt 0:03:35]} h4 {[%emt 0:08:02]} 18. Bb3 {[%emt 0:11:30]} c5 {[%emt 0:11:09]} 19. gxh4 {[%emt 0:12:39]} Rh8 {[%emt 0:05:33]} 20. Rg1 {[%emt 0:15:34]} Qc7 {[%emt 0:00:35]} 21. Qg3 {[%emt 0:05:45]} Rh7 {[%emt 0:12:41]} 22. Bc4 {[%emt 0:07:06]} Rdh8 {[%emt 0:03:49]} 23. Qd3 {[%emt 0:01:42]} Ka7 {[%emt 0:00:12]} 24. f4 {[%emt 0:05:38]} f5 {[%emt 0:05:11]} 25. exf5 {[%emt 0:02:06]} d5 {[%emt 0:00:04]} 26. Ba2 {[%emt 0:00:48]} Qxf4 {[%emt 0:00:21]} 27. fxe6 {[%emt 0:04:32]} fxe6 {[%emt 0:00:14]} 28. Re2 {[%emt 0:03:02]} c4 {[%emt 0:08:12]} 29. Qg3 {[%emt 0:00:39]} Rxh4 {[%emt 0:01:32]} 30. Rxe6 {[%emt 0:01:10]} Bc5 {[%emt 0:00:07]} 31. Rd1 {[%emt 0:01:03]} Qxg3 {[%emt 0:01:26]} 32. hxg3 {[%emt 0:00:01]} Rh1 {[%emt 0:00:06]} 33. Ree1 {[%emt 0:00:36]} Rxe1 {[%emt 0:00:43]} 34. Rxe1 {[%emt 0:00:02]} Bf2 {[%emt 0:00:10]} 35. Rd1 {[%emt 0:00:35]} d4 {[%emt 0:00:57]} 36. Ne2 {[%emt 0:01:38]} d3 {[%emt 0:02:02]} 37. cxd3 {[%emt 0:00:46]} Bf3 {[%emt 0:00:24]} 38. Bxc4 {[%emt 0:00:38]} Bxe2 {[%emt 0:00:17]} 39. Rd2 {[%emt 0:00:02]} Re8 {[%emt 0:01:45]} 40. d4 {[%emt 0:00:02]} Bxc4 {[%emt 0:00:06]} 41. Rxf2 {[%emt 0:00:01]} Bb3 {[%emt 0:00:16]} 42. Kc1 {[%emt 0:00:25]} Re3 {[%emt 0:00:12]} 43. Rg2 {[%emt 0:01:23]} Rd3 {[%emt 0:00:10]} 44. Rg1 {[%emt 0:00:03]} Rxd4 {[%emt 0:00:16]} 45. g4 {[%emt 0:00:01]} Bf7 {[%emt 0:02:07]} 46. Kc2 {[%emt 0:00:55]} Kb6 {[%emt 0:00:57]} 47. g5 {[%emt 0:00:49]} Bg6+ {[%emt 0:00:20]} 48. Kc3 {[%emt 0:00:02]} Kc5 {[%emt 0:00:38]} 49. Rg3 {[%emt 0:00:27]} Rc4+ {[%emt 0:00:38]} 50. Kb3 {[%emt 0:01:02]} Re4 {[%emt 0:00:38]} 51. Kc3 {[%emt 0:00:00]} Rc4+ {[%emt 0:00:19]} 52. Kb3 {[%emt 0:00:00]} Re4 {[%emt 0:00:02]} 53. Kc3 {[%emt 0:00:01]} Kb5 {[%emt 0:00:17]} 54. b3 {[%emt 0:02:42]} Kc5 {[%emt 0:01:02]} 55. Rf3 {[%emt 0:00:33]} Rg4 {[%emt 0:00:48]} 56. Rf6 {[%emt 0:00:01]} Rg3+ {[%emt 0:00:16]} 57. Kd2 {[%emt 0:00:02]} Bd3 {[%emt 0:00:25]} 58. g6 {[%emt 0:00:01]} Bb5 {[%emt 0:00:49]} 59. a4 {[%emt 0:00:35]} Bc6 {[%emt 0:00:24]} 60. b4+ {[%emt 0:00:03]} Kd5 {[%emt 0:00:04]} 61. b5 {[%emt 0:00:05]} axb5 {[%emt 0:00:04]} 62. axb5 {[%emt 0:00:04]} Bxb5 {[%emt 0:00:06]} 63. Rf5+ {[%emt 0:00:55]} Kc6 {[%emt 0:01:00]} 64. Rf6+ {[%emt 0:00:02]} Kd7 {[%emt 0:00:13]} 65. Ke1 {[%emt 0:00:47]} Rg1+ {[%emt 0:00:25]} 66. Kd2 {[%emt 0:00:03]} Bc4 {[%emt 0:00:10]} 67. Rb6 {[%emt 0:01:01]} Bd5 {[%emt 0:00:45]} 68. Ra6 {[%emt 0:00:22]} Ke7 {[%emt 0:00:57]} 69. Ke3 {[%emt 0:00:38]} Be6 {[%emt 0:00:12]} 70. Ra7+ {[%emt 0:00:57]} Kf6 {[%emt 0:00:04]} 71. g7 {[%emt 0:00:07]} Ke5 {[%emt 0:00:17]} 72. Re7 {[%emt 0:00:19]} Kd6 {[%emt 0:01:17]} 73. Ra7 {[%emt 0:00:09]} Bd7 {[%emt 0:00:04]} 74. Ra6+ {[%emt 0:00:09]} Ke7 {[%emt 0:00:05]} 75. Kd4 {[%emt 0:00:13]} Rxg7 {[%emt 0:00:06]} 76. Rb6 {[%emt 0:00:21]} Rg5 {[%emt 0:00:27]} 77. Ke4 {[%emt 0:00:10]} Be6 {[%emt 0:00:05]} 78. Kf4 {[%emt 0:00:10]} Rc5 {[%emt 0:00:27]} 79. Rb4 {[%emt 0:00:25]} Kf6 {[%emt 0:00:10]} 80. Rd4 {[%emt 0:00:19]} Rh5 {[%emt 0:00:28]} 81. Ke4 {[%emt 0:00:07]} Rh1 {[%emt 0:00:34]} 82. Kf4 {[%emt 0:00:34]} Rf1+ {[%emt 0:00:10]} 83. Ke4 {[%emt 0:00:06]} Bf5+ {[%emt 0:03:07]} 84. Kd5 {[%emt 0:00:08]} Ra1 {[%emt 0:00:10]} 85. Kd6 {[%emt 0:00:56]} Ra5 {[%emt 0:00:47]} 86. Rd2 {[%emt 0:00:21]} Ra6+ {[%emt 0:00:59]} 87. Kd5 {[%emt 0:00:14]} Re6 {[%emt 0:00:53]} 88. Rd4 {[%emt 0:00:19]} Re5+ {[%emt 0:00:09]} 89. Kd6 {[%emt 0:00:05]} Be4 {[%emt 0:00:02]} 90. Rd2 {[%emt 0:00:35]} Re6+ {[%emt 0:00:06]} 91. Kc5 {[%emt 0:00:10]} Ke5 {[%emt 0:00:11]} 92. Rh2 {[%emt 0:00:05]} Rc6+ {[%emt 0:00:33]} 93. Kb5 {[%emt 0:00:02]} Rc8 {[%emt 0:01:00]} 94. Rh5+ {[%emt 0:00:09]} Kd4 {[%emt 0:00:15]} 95. Rh4 {[%emt 0:00:03]} Rb8+ {[%emt 0:00:07]} 96. Ka4 {[%emt 0:00:04]} Rb7 {[%emt 0:00:50]} 97. Rg4 {[%emt 0:00:02]} Kd5 {[%emt 0:00:15]} 98. Ka3 {[%emt 0:00:43]} Rb1 {[%emt 0:01:12]} 99. Rh4 {[%emt 0:00:17]} Bd3 {[%emt 0:00:32]} 100. Rb4 {[%emt 0:00:05]} Rc1 {[%emt 0:00:13]} 101. Kb2 {[%emt 0:00:21]} Rc2+ {[%emt 0:00:09]} 102. Kb3 {[%emt 0:00:03]} Rc8 {[%emt 0:00:24]} 103. Rh4 {[%emt 0:00:16]} Bc2+ {[%emt 0:00:06]} 104. Kb4 {[%emt 0:00:18]} Be4 {[%emt 0:00:27]} 105. Rh5+ {[%emt 0:00:16]} Kd4 {[%emt 0:00:04]} 106. Rh4 {[%emt 0:00:03]} Rb8+ {[%emt 0:01:29]} 107. Ka4 {[%emt 0:00:02]} Kd3 {[%emt 0:00:32]} 108. Ka5 {[%emt 0:00:04]} Bd5 {[%emt 0:00:22]} 109. Rb4 {[%emt 0:00:03]} Rh8 {[%emt 0:00:05]} 110. Kb6 {[%emt 0:00:20]} Bc4 {[%emt 0:00:10]} 111. Kc5 {[%emt 0:01:01]} Rc8+ {[%emt 0:00:21]} 112. Kd6 {[%emt 0:00:03]} Kd4 {[%emt 0:01:44]} 113. Rb1 {[%emt 0:00:03]} Rd8+ {[%emt 0:00:03]} 114. Ke7 {[%emt 0:00:23]} Rd5 {[%emt 0:00:23]} 115. Rd1+ {[%emt 0:00:06]} Bd3 {[%emt 0:00:03]} 116. Ke6 {[%emt 0:00:10]} Ra5 {[%emt 0:00:34]} 117. Kd6 {[%emt 0:00:05]} Ra6+ {[%emt 0:00:15]} 118. Ke7 {[%emt 0:00:04]} Ke4 {[%emt 0:00:09]} 119. Re1+ {[%emt 0:00:09]} Kf5 {[%emt 0:00:14]} 120. Rd1 {[%emt 0:00:37]} Be4 {[%emt 0:00:49]} 121. Rd6 {[%emt 0:00:02]} Ra7+ {[%emt 0:00:37]} 122. Rd7 {[%emt 0:00:04]} Ra5 {[%emt 0:00:16]} 123. Rd6 {[%emt 0:00:12]} Bd5 {[%emt 0:00:11]} 124. Rd7 {[%emt 0:01:32]} Ke5 {[%emt 0:00:23]} 125. Rd6 {[%emt 0:00:29]} Ra4 {[%emt 0:02:17]} 126. Rd7 {[%emt 0:00:19]} 1/2-1/2